bitfinex/quotes_SOLUSD_20250228
["timestamp","ask_amount","ask_price","bid_price","bid_amount"]
[1740723202484,18.64964886,127.58,127.54,0.03]
[1740723203411,101.44964886,127.58,127.54,0.03]
[1740723203911,82.8,127.58,127.54,0.03]
[1740723204489,9.923,127.6,127.54,0.03]
[1740723204695,9.923,127.6,127.54,20.03]
[1740723206419,18.64964886,127.58,127.54,0.03]
[1740723206709,82.94216157,127.57,127.54,0.03]
[1740723207091,82.8,127.57,127.54,0.03]
[1740723208113,0.14216157,127.55,127.54,0.03]
[1740723208412,82.94216157,127.55,127.54,0.03]
[1740723208613,82.8,127.55,127.54,0.03]
[1740723208807,101.59181043,127.55,127.54,0.03]
[1740723209011,101.44964886,127.55,127.54,0.03]
[1740723209395,82.8,127.55,127.54,0.03]
[1740723209602,214.96,127.59,127.54,0.03]
[1740723209810,82.8,127.58,127.54,0.03]
[1740723209992,18.64964886,127.57,127.54,0.03]
[1740723210194,18.64964886,127.55,127.54,0.03]
[1740723210394,0.14216157,127.56,127.54,0.03]
[1740723211413,18.64964886,127.58,127.54,0.03]
[1740723211617,214.96,127.59,127.54,0.03]
[1740723212691,0.14216157,127.57,127.54,0.03]
[1740723212891,18.79181043,127.55,127.51,0.03]
[1740723213096,18.79181043,127.53,127.51,0.03]
[1740723213699,84.53186157,127.52,127.48,0.03]
[1740723213994,84.3897,127.52,127.48,0.03]
[1740723214404,18.79181043,127.51,127.48,0.03]
[1740723216611,18.64964886,127.51,127.48,0.03]
[1740723217319,101.44964886,127.51,127.48,0.03]
[1740723217705,82.8,127.53,127.48,0.03]
[1740723221511,82.8,127.58,127.49,20.0]
[1740723221706,82.8,127.57,127.49,20.0]
[1740723222119,101.44964886,127.56,127.49,20.0]
[1740723222312,101.44964886,127.56,127.48,0.03]
[1740723223518,82.8,127.55,127.49,0.14216157]
[1740723223719,82.8,127.55,127.49,18.79181043]
[1740723223920,82.8,127.58,127.52,20.0]
[1740723224309,82.8,127.58,127.53,0.14216157]
[1740723224513,0.063,127.6,127.57,20.0]
[1740723224915,0.063,127.6,127.57,96.84630331]
[1740723225221,0.063,127.6,127.59,20.0]
[1740723226713,0.0001,127.6,127.59,20.0]
[1740723227017,78.744,127.65,127.6,20.0]
[1740723227330,0.063,127.67,127.64,20.0]
[1740723229323,0.063,127.67,127.64,96.84630331]
[1740723229515,0.063,127.67,127.64,20.0]
[1740723229705,74.6879,127.66,127.64,20.0]
[1740723232029,74.6879,127.66,127.61,20.0]
[1740723232210,74.6879,127.65,127.61,20.0]
[1740723232611,74.6879,127.64,127.61,20.0]
[1740723232810,74.6879,127.64,127.57,6.4275]
[1740723233408,74.6879,127.63,127.57,6.4275]
[1740723233610,74.6879,127.62,127.53,6.3059]
[1740723233810,74.6879,127.61,127.53,6.3059]
[1740723234114,74.6879,127.6,127.53,6.3059]
[1740723234733,74.6879,127.59,127.56,20.0]
[1740723234922,74.6879,127.65,127.57,20.14216157]
[1740723235131,74.6879,127.65,127.6,20.0]
[1740723236739,74.6879,127.65,127.54,223.18630331]
[1740723236925,74.6879,127.64,127.54,86.68630331]
[1740723237231,74.6879,127.64,127.6,0.03]
[1740723237529,18.64964886,127.63,127.6,0.03]
[1740723237729,93.33754886,127.63,127.6,0.03]
[1740723237937,74.6879,127.66,127.6,0.03]
[1740723239323,18.64964886,127.65,127.6,0.03]
[1740723241236,74.6879,127.66,127.6,0.03]
[1740723242121,0.063,127.67,127.63,20.0]
[1740723242646,0.063,127.67,127.63,103.01240331]
[1740723243218,0.063,127.67,127.66,20.14216157]
[1740723243417,0.063,127.67,127.66,115.63811374]
[1740723243616,9.773e-05,127.73,127.66,117.28208352]
[1740723243842,9.773e-05,127.73,127.69,20.0]
[1740723244341,9.773e-05,127.73,127.69,96.84630331]
[1740723244931,9.773e-05,127.73,127.65,76.84630331]
[1740723244932,74.6879,127.72,127.65,76.84630331]
[1740723245134,74.6879,127.71,127.63,6.1661]
[1740723245328,74.6879,127.7,127.63,6.1661]
[1740723245635,74.6879,127.7,127.66,20.0]
[1740723246444,9.773e-05,127.73,127.67,0.14216157]
[1740723246821,9.773e-05,127.73,127.7,20.0]
[1740723247614,9.773e-05,127.73,127.71,0.14216157]
[1740723248027,9.773e-05,127.73,127.72,24.81521043]
[1740723248229,9.773e-05,127.73,127.72,26.4587832]
[1740723248742,9.773e-05,127.73,127.72,6.16556157]
[1740723248938,9.773e-05,127.73,127.72,6.0234]
[1740723249440,0.063,127.79,127.75,20.0]
[1740723251743,18.71264886,127.79,127.68,6.0167]
[1740723252043,74.6879,127.78,127.68,82.86300331]
[1740723252339,74.6879,127.77,127.68,82.86300331]
[1740723252644,18.64964886,127.75,127.65,76.84630331]
[1740723252944,84.5079,127.74,127.64,6.1425]
[1740723253143,84.5079,127.74,127.64,20.0]
[1740723253351,93.33754886,127.73,127.61,88.27460331]
[1740723253525,18.64964886,127.71,127.61,9.82]
[1740723253849,74.6879,127.7,127.6,6.6768]
[1740723254145,74.6879,127.7,127.63,20.0]
[1740723256142,74.6879,127.7,127.6,6.6768]
[1740723256623,74.6879,127.7,127.63,20.0]
[1740723258319,74.6879,127.7,127.6,20.03]
[1740723258525,93.33754886,127.69,127.6,0.03]
[1740723258729,86.1635,127.68,127.6,0.03]
[1740723258930,74.6879,127.67,127.6,0.03]
[1740723259332,74.6879,127.67,127.6,20.03]
[1740723260530,74.6879,127.67,127.63,0.03]
[1740723260731,74.6879,127.66,127.63,0.03]
[1740723265432,18.64964886,127.65,127.63,0.03]
[1740723265840,74.6879,127.66,127.63,0.03]
[1740723266637,18.64964886,127.65,127.63,0.03]
[1740723266949,93.33754886,127.64,127.63,0.03]
[1740723267144,18.64964886,127.63,127.6,0.03]
[1740723267451,9.82,127.62,127.6,0.03]
[1740723267746,18.64964886,127.61,127.6,0.03]
[1740723273079,18.79181043,127.61,127.6,0.03]
[1740723273243,18.64964886,127.58,127.54,20.0]
[1740723273440,0.14216157,127.57,127.5,0.03]
[1740723273743,9.82,127.56,127.5,0.03]
[1740723273935,9.82,127.56,127.5,20.03]
[1740723274135,9.82,127.56,127.5,0.03]
[1740723274939,9.82,127.56,127.5,20.03]
[1740723276735,9.82,127.56,127.51,20.0]
[1740723276938,132.16,127.58,127.51,20.0]
[1740723277140,132.16,127.58,127.51,96.84630331]
[1740723277341,132.16,127.58,127.52,0.14216157]
[1740723277552,92.62,127.6,127.55,20.0]
[1740723278241,92.62,127.6,127.52,20.0]
[1740723278553,82.8,127.59,127.5,76.87630331]
[1740723278949,82.8,127.59,127.53,20.0]
[1740723279154,101.44964886,127.58,127.5,0.03]
[1740723279351,18.64964886,127.56,127.5,0.03]
[1740723279668,82.8,127.55,127.5,0.03]
[1740723279958,92.62,127.54,127.5,0.03]
[1740723280254,101.44964886,127.53,127.5,0.03]
[1740723280456,18.64964886,127.51,127.5,0.03]
[1740723280665,82.8,127.52,127.5,0.03]
[1740723281442,18.64964886,127.51,127.5,0.03]
[1740723284355,26.63431043,127.51,127.5,0.03]
[1740723284747,0.14216157,127.48,127.47,0.03]
[1740723284953,28.63181043,127.48,127.47,0.03]
[1740723285274,28.48964886,127.48,127.47,0.03]
[1740723285776,28.63181043,127.48,127.47,0.03]
[1740723287067,9.84,127.48,127.47,0.03]
[1740723287551,9.98216157,127.48,127.47,0.03]
[1740723288145,17.82646157,127.48,127.47,0.03]
[1740723288366,9.98216157,127.48,127.47,0.03]
[1740723289148,9.84,127.48,127.47,0.03]
[1740723289560,6.3668,127.53,127.47,0.03]
[1740723289759,9.82,127.52,127.47,0.03]
[1740723289958,9.82,127.56,127.48,20.0]
[1740723290160,12.16302842,127.61,127.51,20.0]
[1740723290549,18.85481043,127.6,127.51,20.0]
[1740723291447,0.20516157,127.6,127.51,20.0]
[1740723292392,82.8,127.59,127.49,20.0]
[1740723292676,18.64964886,127.58,127.49,20.0]
[1740723292857,82.8,127.57,127.49,20.0]
[1740723293054,111.26964886,127.56,127.5,20.0]
[1740723293286,18.64964886,127.54,127.47,0.03]
[1740723293493,18.64964886,127.52,127.47,0.03]
[1740723293861,82.8,127.51,127.47,0.03]
[1740723294162,82.8,127.5,127.47,0.03]
[1740723294380,92.62,127.5,127.47,0.03]
[1740723295083,18.64964886,127.49,127.47,0.03]
[1740723295287,82.8,127.48,127.47,0.03]
[1740723295603,18.64964886,127.49,127.47,0.03]
[1740723296273,9.82,127.5,127.47,0.03]
[1740723296987,18.85481043,127.49,127.47,0.03]
[1740723300512,26.69861043,127.49,127.47,0.03]
[1740723300809,18.71264886,127.49,127.47,0.03]
[1740723301015,0.063,127.49,127.47,0.03]
[1740723301215,26.55644886,127.49,127.47,0.03]
[1740723301386,18.71264886,127.49,127.47,0.03]
[1740723301785,26.55634886,127.49,127.47,0.03]
[1740723302082,0.14216157,127.48,127.41,0.03]
[1740723302703,0.14216157,127.46,127.41,0.03]
[1740723303215,18.79181043,127.44,127.37,0.03]
[1740723303414,132.32,127.45,127.37,0.03]
[1740723303415,18.64964886,127.42,127.37,0.03]
[1740723304187,9.82,127.43,127.37,0.03]
[1740723304502,82.8,127.41,127.37,0.03]
[1740723304701,82.8,127.4,127.37,0.03]
[1740723305201,82.8,127.39,127.37,0.03]
[1740723306612,20.0,127.35,127.19,6.2966]
[1740723306819,225.10216157,127.34,127.19,6.2966]
[1740723307015,0.14216157,127.3,127.14,154.86448719]
[1740723307224,101.59181043,127.3,127.14,18.36448719]
[1740723307387,18.79181043,127.28,127.17,20.0]
[1740723307587,18.79181043,127.28,127.14,18.36448719]
[1740723307822,18.79181043,127.28,127.15,18.64964886]
[1740723308321,18.79181043,127.28,127.14,6.1436]
[1740723308514,18.79181043,127.28,127.15,7.8647]
[1740723308693,9.82,127.29,127.18,20.0]
[1740723309017,9.82,127.29,127.22,20.0]
[1740723309592,9.82,127.29,127.21,20.0]
[1740723310209,18.64964886,127.32,127.26,20.0]
[1740723310210,82.8,127.32,127.26,20.0]
[1740723310389,132.34,127.34,127.27,20.0]
[1740723311405,82.8,127.33,127.23,6.0669]
[1740723311697,82.8,127.32,127.23,6.0669]
[1740723311904,132.34,127.34,127.27,20.0]
[1740723312514,82.8,127.33,127.26,20.0]
[1740723313595,82.8,127.39,127.28,20.0]
[1740723313803,82.8,127.38,127.28,20.0]
[1740723314199,82.8,127.38,127.32,20.0]
[1740723315233,82.8,127.38,127.34,20.0]
[1740723317133,225.08,127.41,127.34,20.0]
[1740723317635,82.8,127.4,127.34,20.0]
[1740723318324,142.28,127.41,127.34,96.84630331]
[1740723318524,0.063,127.44,127.38,20.0]
[1740723318723,0.063,127.44,127.39,20.0]
[1740723319325,0.063,127.44,127.4,6.4676]
[1740723319511,0.063,127.44,127.43,20.0]
[1740723319713,0.063,127.44,127.36,6.4676]
[1740723320118,0.063,127.44,127.39,20.0]
[1740723320427,82.8,127.43,127.39,20.0]
[1740723321234,92.62,127.43,127.39,20.0]
[1740723322928,0.063,127.4,127.33,76.84630331]
[1740723323111,82.8,127.42,127.36,20.0]
[1740723323311,0.063,127.44,127.4,20.0]
[1740723323549,82.8,127.47,127.41,6.4676]
[1740723323709,132.42,127.48,127.43,20.0]
[1740723323913,215.22,127.48,127.43,20.0]
[1740723324147,82.8,127.47,127.41,6.4676]
[1740723324444,18.79181043,127.46,127.38,20.0]
[1740723324628,92.62,127.45,127.38,20.0]
[1740723324831,82.8,127.44,127.35,6.301]
[1740723325123,18.79181043,127.42,127.35,6.301]
[1740723325307,82.8,127.41,127.3,6.301]
[1740723325510,82.8,127.41,127.33,20.0]
[1740723325709,82.8,127.4,127.33,20.0]
[1740723326014,82.8,127.4,127.34,20.0]
[1740723326215,82.8,127.44,127.38,20.0]
[1740723327424,82.8,127.44,127.36,20.0]
[1740723327620,0.14216157,127.43,127.36,20.0]
[1740723327838,18.64964886,127.42,127.3,6.301]
[1740723328139,82.8,127.41,127.3,6.301]
[1740723328313,28.61181043,127.4,127.33,20.0]
[1740723328517,82.8,127.39,127.3,6.301]
[1740723328720,82.8,127.38,127.3,6.301]
[1740723328920,82.8,127.38,127.33,20.0]
[1740723329236,82.8,127.37,127.3,6.301]
[1740723329409,9.82,127.4,127.33,20.0]
[1740723329617,82.8,127.43,127.33,20.0]
[1740723329812,82.8,127.42,127.33,20.0]
[1740723330031,101.59181043,127.41,127.3,6.301]
[1740723330315,82.8,127.4,127.3,6.301]
[1740723330621,82.8,127.4,127.33,20.0]
[1740723330820,82.8,127.39,127.33,20.0]
[1740723331517,82.8,127.41,127.33,96.84630331]
[1740723332434,9.82,127.44,127.34,18.79181043]
[1740723332634,82.8,127.46,127.41,20.0]
[1740723333039,82.8,127.45,127.41,20.0]
[1740723333247,82.8,127.44,127.35,76.84630331]
[1740723333432,82.8,127.43,127.38,20.0]
[1740723333619,80.4261,127.42,127.38,20.0]
[1740723333832,80.4261,127.45,127.37,1.6517]
[1740723334030,80.4261,127.45,127.38,20.0]
[1740723334352,80.4261,127.45,127.39,20.0]
[1740723335343,0.063,127.44,127.39,20.0]
[1740723335726,0.063,127.44,127.42,20.0]
[1740723336425,80.4261,127.43,127.36,76.84630331]
[1740723336625,80.4261,127.43,127.38,20.0]
[1740723336840,0.063,127.44,127.39,20.0]
[1740723337043,80.4261,127.43,127.36,76.84630331]
[1740723337245,80.4261,127.42,127.35,76.87630331]
[1740723337439,80.4261,127.41,127.35,0.03]
[1740723337749,80.4261,127.41,127.37,20.0]
[1740723337921,80.0266,127.41,127.37,20.0]
[1740723338331,0.063,127.44,127.4,20.0]
[1740723340046,80.0266,127.43,127.35,213.37630331]
[1740723340257,80.0266,127.43,127.35,76.87630331]
[1740723340431,80.0266,127.43,127.35,0.03]
[1740723340748,9.82,127.42,127.35,0.03]
[1740723341329,9.82,127.42,127.37,20.0]
[1740723341540,80.0266,127.41,127.35,0.03]
[1740723342154,80.0266,127.41,127.35,20.03]
[1740723343157,80.0266,127.41,127.35,0.03]
[1740723343455,80.0266,127.4,127.35,0.03]
[1740723343654,80.0266,127.39,127.35,0.03]
[1740723345139,80.0266,127.38,127.35,0.03]
[1740723345339,80.0266,127.37,127.35,0.03]
[1740723346033,1.6582,127.4,127.35,0.03]
[1740723346238,80.0266,127.39,127.35,0.03]
[1740723347560,80.0266,127.42,127.35,0.03]
[1740723347736,89.8466,127.42,127.35,0.03]
[1740723348346,98.67624886,127.41,127.35,0.03]
[1740723348638,80.0266,127.4,127.35,0.03]
[1740723349146,89.9096,127.44,127.36,20.0]
[1740723349348,89.9096,127.44,127.38,20.0]
[1740723350349,89.9096,127.44,127.37,20.0]
[1740723350548,0.14216157,127.42,127.37,20.0]
[1740723350744,0.14216157,127.42,127.35,0.03]
[1740723350745,18.79181043,127.4,127.35,0.03]
[1740723350940,80.0266,127.39,127.35,0.03]
[1740723351248,89.8466,127.38,127.35,0.03]
[1740723351451,80.0266,127.37,127.35,0.03]
[1740723352562,80.0266,127.36,127.35,0.03]
[1740723359368,97.62186913,127.39,127.35,0.03]
[1740723360347,80.0266,127.39,127.35,0.03]
[1740723362660,98.81841043,127.38,127.35,0.03]
[1740723363064,80.0266,127.38,127.35,0.03]
[1740723363266,132.38,127.4,127.35,0.03]
[1740723363677,212.4066,127.4,127.35,0.03]
[1740723363864,0.063,127.42,127.35,95.66811374]
[1740723364052,0.063,127.42,127.38,20.0]
[1740723364452,80.0266,127.41,127.35,0.03]
[1740723364766,0.063,127.42,127.35,0.03]
[1740723364767,80.0266,127.4,127.35,0.03]
[1740723364965,98.81841043,127.39,127.35,0.03]
[1740723365159,18.79181043,127.37,127.35,0.03]
[1740723365467,108.61841043,127.36,127.35,0.03]
[1740723365876,28.59181043,127.36,127.35,0.03]
[1740723366060,101.59181043,127.35,127.25,6.3078]
[1740723366377,101.59181043,127.35,127.2,6.3132]
[1740723366378,18.79181043,127.33,127.2,6.3132]
[1740723366559,18.79181043,127.31,127.23,20.0]
[1740723366859,92.6,127.3,127.2,6.3132]
[1740723367060,92.6,127.3,127.23,20.0]
[1740723367262,82.8,127.29,127.23,20.0]
[1740723367663,101.59181043,127.28,127.2,6.3132]
[1740723367864,82.8,127.27,127.15,6.3132]
[1740723368067,82.8,127.27,127.18,20.0]
[1740723368971,82.8,127.27,127.2,20.0]
[1740723369169,11.3473,127.34,127.24,20.0]
[1740723369492,9.8,127.34,127.24,156.5]
[1740723369782,18.79181043,127.33,127.21,213.34630331]
[1740723370171,18.79181043,127.33,127.24,20.0]
[1740723370367,9.8,127.34,127.25,18.79181043]
[1740723370582,17.59615731,127.36,127.29,20.0]
[1740723370883,17.59615731,127.36,127.33,20.0]
[1740723371099,132.523,127.44,127.37,20.0]
[1740723371266,0.063,127.44,127.37,233.34630331]
[1740723372568,0.063,127.44,127.37,20.0]
[1740723373267,9.8,127.43,127.37,20.0]
[1740723373470,18.85481043,127.42,127.3,223.14630331]
[1740723373671,0.063,127.41,127.3,223.14630331]
[1740723374167,0.063,127.41,127.33,20.0]
[1740723376169,0.063,127.41,127.34,1.79075702]
[1740723376370,0.063,127.41,127.38,20.0]
[1740723376570,0.063,127.41,127.38,233.34630331]
[1740723376980,0.063,127.42,127.38,233.34630331]
[1740723378000,0.063,127.42,127.39,1.79016847]
[1740723378206,0.063,127.44,127.43,20.0]
[1740723378377,0.063,127.44,127.43,233.34630331]
[1740723378578,0.063,127.44,127.43,252.13811374]
[1740723379092,0.063,127.44,127.43,233.48846488]
[1740723379479,0.063,127.44,127.43,233.34630331]
[1740723379701,0.063,127.44,127.43,20.0]
[1740723379900,0.063,127.44,127.38,0.14216157]
[1740723380077,0.063,127.44,127.37,92.66420331]
[1740723380273,0.063,127.44,127.37,82.86420331]
[1740723380581,0.063,127.44,127.4,20.0]
[1740723380790,0.063,127.44,127.37,82.86420331]
[1740723381099,0.063,127.44,127.4,20.0]
[1740723382199,0.063,127.44,127.4,213.34630331]
[1740723382579,0.063,127.44,127.43,20.0]
[1740723383577,0.063,127.44,127.43,38.79181043]
[1740723383996,0.063,127.44,127.43,20.0]
[1740723385297,0.063,127.44,127.4,76.84630331]
[1740723385473,82.8,127.43,127.37,6.0179]
[1740723385679,82.8,127.42,127.33,9.8]
[1740723385978,82.8,127.41,127.33,76.84630331]
[1740723386177,82.8,127.4,127.36,20.0]
[1740723386882,82.8,127.4,127.34,18.64964886]
[1740723387079,82.8,127.4,127.36,20.0]
[1740723387280,82.8,127.4,127.33,76.84630331]
[1740723388203,82.8,127.4,127.37,20.0]
[1740723388399,82.8,127.43,127.37,20.0]
[1740723388585,82.8,127.43,127.34,213.34630331]
[1740723388778,82.8,127.42,127.34,76.84630331]
[1740723389184,82.8,127.42,127.32,6.1208]
[1740723389508,82.8,127.42,127.35,20.0]
[1740723389693,82.8,127.42,127.33,0.14216157]
[1740723389889,82.8,127.42,127.33,18.79181043]
[1740723390113,0.063,127.44,127.36,20.0]
[1740723390295,0.063,127.44,127.37,20.0]
[1740723390495,82.8,127.43,127.37,20.0]
[1740723391014,82.8,127.42,127.37,20.0]
[1740723393318,82.8,127.42,127.34,86.64630331]
[1740723393620,92.6,127.41,127.29,76.87630331]
[1740723393827,82.8,127.4,127.29,76.87630331]
[1740723393995,18.79181043,127.39,127.29,76.87630331]
[1740723394200,26.64181043,127.39,127.29,76.87630331]
[1740723394511,18.79181043,127.37,127.29,0.03]
[1740723394808,92.6,127.36,127.29,0.03]
[1740723395016,101.59181043,127.35,127.29,0.03]
[1740723395197,82.8,127.34,127.29,0.03]
[1740723395399,101.59181043,127.33,127.29,0.03]
[1740723396622,82.8,127.32,127.29,0.03]
[1740723397198,82.8,127.32,127.29,20.03]
[1740723397399,82.8,127.34,127.29,20.03]
[1740723397697,18.79181043,127.33,127.29,0.03]
[1740723397930,82.8,127.32,127.29,0.03]
[1740723398227,9.8,127.31,127.29,0.03]
[1740723398398,82.8,127.3,127.29,0.03]
[1740723400041,89.0895,127.29,127.18,6.5034]
[1740723400229,82.8,127.28,127.18,83.34970331]
[1740723400751,18.79181043,127.27,127.18,83.34970331]
[1740723400904,9.8,127.26,127.21,20.0]
[1740723401103,82.8,127.25,127.21,20.0]
[1740723401819,82.8,127.25,127.17,20.0]
[1740723402017,82.8,127.24,127.19,20.0]
[1740723402224,6.2895,127.29,127.19,20.0]
[1740723402419,82.8,127.28,127.19,101.6]
[1740723403133,82.8,127.33,127.23,20.0]
[1740723403341,92.6,127.32,127.23,101.6]
[1740723403538,82.8,127.32,127.23,101.6]
[1740723403712,82.8,127.31,127.23,108.1802]
[1740723404045,79.2394,127.34,127.27,20.0]
[1740723404331,79.2394,127.37,127.31,20.0]
[1740723404551,79.2394,127.39,127.31,20.0]
[1740723404759,79.2394,127.39,127.32,20.0]
[1740723404925,1.5942,127.4,127.32,20.0]
[1740723405122,211.6994,127.41,127.32,107.8396]
[1740723407031,98.03121043,127.4,127.27,6.6204]
[1740723407417,98.03121043,127.4,127.3,20.0]
[1740723407634,0.14216157,127.38,127.3,20.0]
[1740723407820,9.8,127.37,127.3,20.0]
[1740723408432,79.2394,127.38,127.3,20.0]
[1740723408833,79.2394,127.37,127.27,88.2204]
[1740723409034,79.2394,127.36,127.27,6.6204]
[1740723409234,89.0394,127.36,127.3,20.0]
[1740723409434,9.8,127.36,127.31,20.0]
[1740723411135,9.8,127.36,127.28,81.6]
[1740723411334,79.2394,127.35,127.31,20.0]
[1740723412247,79.2394,127.39,127.3,18.79181043]
[1740723412436,79.2394,127.38,127.33,20.0]
[1740723412637,79.2394,127.37,127.33,20.0]
[1740723413229,79.2394,127.4,127.37,20.0]
[1740723413429,132.46,127.41,127.37,20.0]
[1740723414052,79.2394,127.43,127.37,20.0]
[1740723415461,79.2394,127.43,127.39,20.0]
[1740723416850,79.2394,127.43,127.37,20.0]
[1740723417149,79.2394,127.43,127.37,101.6]
[1740723417657,79.2394,127.42,127.35,81.6]
[1740723418157,79.2394,127.42,127.38,20.0]
[1740723418337,79.2394,127.42,127.35,81.6]
[1740723418661,89.0394,127.42,127.38,20.0]
[1740723419840,9.8,127.42,127.38,101.6]
[1740723420045,0.063,127.44,127.38,101.6]
[1740723420241,0.063,127.44,127.42,20.0]
[1740723422566,0.063,127.42,127.39,6.6113]
[1740723422933,0.063,127.42,127.36,1.64820937]
[1740723423146,0.063,127.42,127.4,20.0]
[1740723423342,0.063,127.42,127.37,18.79181043]
[1740723423343,0.063,127.42,127.41,20.0]
[1740723423752,0.063,127.42,127.37,81.6]
[1740723424142,79.2394,127.41,127.35,6.1962]
[1740723424856,79.2394,127.41,127.38,20.0]
[1740723426153,0.063,127.42,127.38,101.6]
[1740723426358,0.063,127.42,127.41,20.14216157]
[1740723426657,0.063,127.44,127.43,25.38781043]
[1740723426852,0.063,127.49,127.47,20.0]
[1740723427034,0.063,127.49,127.48,20.0]
[1740723427235,0.063,127.49,127.48,38.64964886]
[1740723427441,0.063,127.49,127.48,38.79181043]
[1740723427654,0.063,127.49,127.48,258.53839911]
[1740723427855,12.3395588,127.53,127.52,38.79181043]
[1740723428052,12.3395588,127.53,127.52,256.89181043]
[1740723428357,4.0063588,127.53,127.52,263.10901043]
[1740723428553,0.063,127.57,127.53,18.79181043]
[1740723428759,11.2199176,127.54,127.53,20.43739158]
[1740723428953,4.5640176,127.54,127.53,239.97122787]
[1740723429155,2.8974176,127.54,127.53,238.32564672]
[1740723429948,0.063,127.55,127.53,81.6]
[1740723430366,0.063,127.55,127.54,20.43791324]
[1740723430570,0.063,127.55,127.54,238.53791324]
[1740723430791,0.063,127.55,127.54,236.89181043]
[1740723432159,0.063,127.57,127.56,20.14216157]
[1740723432362,0.063,127.6,127.57,18.79181043]
[1740723432548,0.063,127.6,127.59,38.79181043]
[1740723432752,0.063,127.6,127.59,256.89181043]
[1740723433235,0.063,127.62,127.59,256.89181043]
[1740723433442,0.063,127.62,127.6,20.43624235]
[1740723433642,0.063,127.62,127.6,239.96929205]
[1740723433837,0.063,127.62,127.61,11.35509897]
[1740723434044,0.063,127.62,127.61,248.10474783]
[1740723434360,1.6148,127.75,127.68,20.0]
[1740723434563,6.0218,127.76,127.72,20.0]
[1740723434951,0.063,127.8,127.72,38.79181043]
[1740723435150,0.063,127.8,127.72,38.64964886]
[1740723435345,0.063,127.8,127.72,38.79181043]
[1740723435553,0.063,127.8,127.72,40.43517511]
[1740723436672,0.063,127.8,127.77,18.79181043]
[1740723436848,0.063,127.8,127.78,30.07199324]
[1740723437257,0.063,127.8,127.78,28.42964886]
[1740723437662,0.063,127.8,127.78,9.78]
[1740723437860,0.063,127.8,127.72,3.07415314]
[1740723438167,0.063,127.8,127.74,0.14216157]
[1740723438356,0.063,127.8,127.76,18.64964886]
[1740723438849,0.063,127.8,127.74,1.64286975]
[1740723439050,0.063,127.8,127.71,1.64301827]
[1740723439351,0.063,127.8,127.72,18.79181043]
[1740723439564,0.063,127.8,127.77,20.0]
[1740723440268,0.063,127.8,127.75,38.79181043]
[1740723440443,0.063,127.8,127.75,38.64964886]
[1740723440648,0.063,127.8,127.75,40.29280716]
[1740723441049,0.063,127.8,127.76,0.14216157]
[1740723441252,0.063,127.8,127.78,18.79181043]
[1740723441550,0.063,127.8,127.76,0.14216157]
[1740723441966,0.063,127.8,127.78,18.64964886]
[1740723442171,6.1048,127.86,127.85,20.0]